fUST/lending_fUST_20250209
["ID","MTS","AMOUNT","RATE_DAILY","PERIOD"]
[352352725,1739053844068,-500.0,0.00011369,2]
[352352726,1739053844078,-221.769716,0.00011369,2]
[352352727,1739053844088,-533.66,0.00011369,2]
[352352728,1739053844097,-1038.66,0.00011369,2]
[352352729,1739053844107,-221.769716,0.00011369,2]
[352352730,1739053844117,-5468.34,0.00011369,2]
[352352731,1739053844127,-2011.74,0.00011369,2]
[352352732,1739053844136,-500.0,0.00011369,2]
[352352733,1739053844146,-500.0,0.00011369,2]
[352352734,1739053844155,-249.531378,0.00011369,2]
[352352735,1739053844164,-500.0,0.00011369,2]
[352352736,1739053844175,-1132.03,0.00011369,2]
[352352737,1739053844184,-500.0,0.00011369,2]
[352352738,1739053844195,-2336.66,0.00011369,2]
[352352739,1739053844205,-500.0,0.00011369,2]
[352352740,1739053844215,-2271.98,0.00011369,2]
[352352741,1739053844225,-1017.15,0.00011369,2]
[352352742,1739053844234,-616.286043,0.00011369,2]
[352352743,1739053844243,-9408.78,0.00011369,2]
[352352744,1739053844253,-500.0,0.00011369,2]
[352352745,1739053844262,-616.286043,0.00011369,2]
[352352746,1739053844272,-555.24645535,0.00011369,2]
[352352747,1739053844281,-640.46975893,0.00011369,2]
[352352748,1739053844291,-500.0,0.00011369,2]
[352352749,1739053844300,-500.0,0.00011369,2]
[352352750,1739053844309,-500.0,0.00011369,2]
[352352751,1739053844320,-500.0,0.00011369,2]
[352352752,1739053844330,-811.653379,0.00011369,2]
[352352753,1739053844340,-811.653379,0.00011369,2]
[352352754,1739053844350,-674.84,0.00011369,2]
[352352755,1739053844360,-626.0,0.00011369,2]
[352352756,1739053844369,-500.0,0.00011369,2]
[352352757,1739053844379,-500.0,0.00011369,2]
[352352758,1739053844388,-1922.81,0.00011369,2]
[352352759,1739053844398,-861.82,0.00011369,2]
[352352760,1739053844408,-151.0,0.00011369,2]
[352352761,1739053844417,-500.0,0.00011369,2]
[352352762,1739053844427,-500.0,0.00011369,2]
[352352763,1739053844437,-500.0,0.00011369,2]
[352352764,1739053844446,-674.57,0.00011369,2]
[352352765,1739053844456,-2052.04,0.00011369,2]
[352352766,1739053844465,-1050.46,0.00011369,2]
[352352767,1739053844475,-3418.51,0.00011369,2]
[352352768,1739053844484,-500.0,0.00011369,2]
[352352769,1739053844493,-272.605407,0.00011369,2]
[352352770,1739053844503,-782.84,0.00011369,2]
[352352771,1739053844513,-344.92397539,0.00011369,2]
[352352772,1739053844523,-25845.69,0.00011369,2]
[352352773,1739053844532,-272.605407,0.00011369,2]
[352352774,1739053844541,-1184.97,0.00011369,2]
[352352775,1739053844550,-1426.95,0.00011369,2]
[352352776,1739053844560,-500.0,0.00011369,2]
[352352777,1739053844570,-509.33,0.00011369,2]
[352352778,1739053844580,-500.0,0.00011369,2]
[352352779,1739053844589,-500.0,0.00011369,2]
[352352780,1739053844598,-443.388756,0.00011369,2]
[352352781,1739053844608,-247.149156,0.00011369,2]
[352352782,1739053844618,-879.52,0.00011369,2]
[352352783,1739053844627,-902.54,0.00011369,2]
[352352784,1739053844636,-443.388756,0.00011369,2]
[352352785,1739053844646,-247.149156,0.00011369,2]
[352352786,1739053844655,-6216.05,0.00011369,2]
[352352787,1739053844666,-215.7975175,0.0001137,2]
[352352788,1739053844676,-13235.06663766,0.00011392,2]
[352352789,1739053844685,-154.5736464,0.000114,2]
[352352790,1739053844695,-354.7727591,0.000114,2]
[352352791,1739053844704,-354.7727591,0.000114,2]
[352352792,1739053844714,-154.5736464,0.000114,2]
[352352793,1739053844724,-154.5736464,0.000114,2]
[352352794,1739053844734,-354.7727591,0.000114,2]
[352352795,1739053844743,-215.7975175,0.000114,2]
[352352796,1739053844753,-151.64112493,0.00011421,2]
[352352797,1739053844763,-261.26856444,0.00011421,2]
[352352798,1739053844772,-151.59975057,0.00011421,2]
[352352799,1739053844782,-187.20311775,0.00011421,2]
[352352800,1739053844792,-500.0,0.00011421,2]
[352352801,1739053844802,-153.0,0.00011425,2]
[352352802,1739053844811,-153.0,0.00011425,2]
[352352803,1739053844822,-153.0,0.00011425,2]
[352352804,1739053844831,-153.0,0.00011425,2]
[352352805,1739053844842,-504.66349108,0.00011478,2]
[352352806,1739053844852,-500.0,0.00011496,2]
[352352807,1739053844862,-500.0,0.00011496,2]
[352352808,1739053844872,-151.0,0.000115,2]
[352352809,1739053844882,-154.5349496,0.000115,2]
[352352810,1739053844892,-215.7975175,0.000115,2]
[352352811,1739053844901,-215.7975175,0.000115,2]
[352352812,1739053844911,-153.0,0.000115,2]
[352352813,1739053844920,-126820.14850416,0.00011506,5]
[352352814,1739053844930,-8243.9664785,0.00011506,5]
[352352815,1739053844940,-500.0,0.00011506,2]
[352352816,1739053844953,-500.0,0.00011506,2]
[352352817,1739053844963,-950.13,0.00011506,2]
[352352818,1739053844973,-151.0,0.00011506,2]
[352352819,1739053844983,-151.0,0.00011506,2]
[352352820,1739053844992,-1176.96979,0.00011506,2]
[352352821,1739053845002,-1176.96979,0.00011506,2]
[352352822,1739053845012,-252.07,0.00011506,2]
[352352823,1739053845023,-555.11,0.00011506,2]
[352352824,1739053845034,-820.39,0.00011506,2]
[352352825,1739053845045,-151.0,0.00011506,2]
[352352826,1739053845055,-283.398644,0.00011506,2]
[352352827,1739053845066,-500.0,0.00011506,2]
[352352828,1739053845076,-283.398644,0.00011506,2]
[352352829,1739053845086,-500.0,0.00011506,2]
[352352830,1739053845096,-151.0,0.00011506,2]
[352352831,1739053845106,-500.0,0.00011506,2]
[352352832,1739053845116,-151.0,0.00011506,2]
[352352833,1739053845126,-151.0,0.00011506,2]
[352352834,1739053845136,-694.45,0.00011506,2]
[352352835,1739053845146,-151.0,0.00011506,2]
[352352836,1739053845155,-533.1,0.00011506,2]
[352352837,1739053845165,-500.0,0.00011506,2]
[352352838,1739053845175,-500.0,0.00011506,2]
[352352839,1739053845186,-500.0,0.00011506,2]
[352352840,1739053845195,-500.0,0.00011506,2]
[352352841,1739053845206,-500.0,0.00011506,2]
[352352842,1739053845215,-500.0,0.00011506,2]
[352352843,1739053845225,-724.76,0.00011506,2]
[352352844,1739053845235,-500.0,0.00011506,2]
[352352845,1739053845244,-500.0,0.00011506,2]
[352352846,1739053845254,-151.0,0.00011506,2]
[352352847,1739053845264,-234.330254,0.00011506,2]
[352352848,1739053845274,-500.0,0.00011506,2]
[352352849,1739053845284,-234.330254,0.00011506,2]
[352352850,1739053845293,-151.843507,0.00011506,2]
[352352851,1739053845303,-500.0,0.00011506,2]
[352352852,1739053845313,-582.77,0.00011506,2]
[352352853,1739053845323,-500.0,0.00011506,2]
[352352854,1739053845332,-500.0,0.00011506,2]
[352352855,1739053845342,-868.97,0.00011506,2]
[352352856,1739053845351,-500.0,0.00011506,2]
[352352857,1739053845360,-500.0,0.00011506,2]
[352352858,1739053845370,-270.005358,0.00011506,2]
[352352859,1739053845379,-796.22,0.00011506,2]
[352352860,1739053845389,-621.31,0.00011506,2]
[352352861,1739053845399,-270.005358,0.00011506,2]
[352352862,1739053845408,-500.0,0.00011506,2]
[352352863,1739053845418,-1125.62,0.00011506,2]
[352352864,1739053845428,-578.63,0.00011506,2]
[352352865,1739053845437,-461.35533772,0.00011506,2]
[352352866,1739053845447,-151.0,0.00011506,2]
[352352867,1739053845456,-1061.58,0.00011506,2]
[352352868,1739053845465,-500.0,0.00011506,2]
[352352869,1739053845475,-500.0,0.00011506,2]
[352352870,1739053845485,-346.523451,0.00011506,2]
[352352871,1739053845494,-346.523451,0.00011506,2]
[352352872,1739053845504,-3001.88,0.00011506,2]
[352352873,1739053845514,-500.0,0.00011506,2]
[352352874,1739053845524,-1106.85,0.00011506,2]
[352352875,1739053845533,-839.75,0.00011506,2]
[352352876,1739053845543,-315.04,0.00011506,2]
[352352877,1739053845552,-1121.97,0.00011506,2]
[352352878,1739053845562,-500.0,0.00011506,2]
[352352879,1739053845572,-500.0,0.00011506,2]
[352352880,1739053845582,-500.0,0.00011506,2]
[352352881,1739053845592,-500.0,0.00011506,2]
[352352882,1739053845601,-500.0,0.00011506,2]
[352352883,1739053845611,-500.0,0.00011506,2]
[352352884,1739053845621,-2131.55,0.00011506,2]
[352352885,1739053845630,-500.0,0.00011506,2]
[352352886,1739053845640,-221.769716,0.00011506,2]
[352352887,1739053845650,-1038.66,0.00011506,2]
[352352888,1739053845660,-221.769716,0.00011506,2]
[352352889,1739053845670,-5468.34,0.00011506,2]
[352352890,1739053845680,-2011.74,0.00011506,2]
[352352891,1739053845689,-500.0,0.00011506,2]
[352352892,1739053845699,-500.0,0.00011506,2]
[352352893,1739053845708,-500.0,0.00011506,2]
[352352894,1739053845718,-249.531378,0.00011506,2]
[352352895,1739053845728,-1132.03,0.00011506,2]
[352352896,1739053845738,-500.0,0.00011506,2]
[352352898,1739053845748,-2336.66,0.00011506,2]
[352352899,1739053845758,-500.0,0.00011506,2]
[352352900,1739053845767,-2271.98,0.00011506,2]
[352352901,1739053845777,-938.65249501,0.00011506,2]
[352352903,1739053846135,-78.49750499,0.00011506,2]
[352352904,1739053846144,-616.286043,0.00011506,2]
[352352905,1739053846154,-9408.78,0.00011506,2]
[352352906,1739053846163,-500.0,0.00011506,2]
[352352907,1739053846172,-616.286043,0.00011506,2]
[352352908,1739053846182,-500.0,0.00011506,2]
[352352909,1739053846192,-500.0,0.00011506,2]
[352352910,1739053846202,-500.0,0.00011506,2]
[352352911,1739053846212,-500.0,0.00011506,2]
[352352912,1739053846222,-811.653379,0.00011506,2]
[352352913,1739053846231,-811.653379,0.00011506,2]
[352352914,1739053846240,-674.84,0.00011506,2]
[352352915,1739053846250,-336.34060553,0.00011506,2]
[352352916,1739053846259,-500.0,0.00011506,2]
[352352917,1739053846269,-1922.81,0.00011506,2]
[352352918,1739053846278,-861.82,0.00011506,2]
[352352919,1739053846287,-500.0,0.00011506,2]
[352352920,1739053846297,-500.0,0.00011506,2]
[352352921,1739053846308,-500.0,0.00011506,2]
[352352922,1739053846318,-674.57,0.00011506,2]
[352352923,1739053846328,-2052.04,0.00011506,2]
[352352924,1739053846337,-1050.46,0.00011506,2]
[352352925,1739053846346,-3418.51,0.00011506,2]
[352352926,1739053846355,-500.0,0.00011506,2]
[352352927,1739053846365,-272.605407,0.00011506,2]
[352352928,1739053846374,-782.84,0.00011506,2]
[352352929,1739053846383,-25845.69,0.00011506,2]
[352352930,1739053846393,-272.605407,0.00011506,2]
[352352931,1739053846402,-1184.97,0.00011506,2]
[352352932,1739053846411,-1426.95,0.00011506,2]
[352352934,1739053846421,-509.33,0.00011506,2]
[352352936,1739053846431,-500.0,0.00011506,2]
[352352937,1739053846440,-500.0,0.00011506,2]
[352352939,1739053846450,-443.388756,0.00011506,2]
[352352941,1739053846459,-247.149156,0.00011506,2]
[352352943,1739053846469,-879.52,0.00011506,2]
[352352945,1739053846478,-902.54,0.00011506,2]
[352352947,1739053846487,-443.388756,0.00011506,2]
[352352949,1739053846497,-247.149156,0.00011506,2]
[352352952,1739053846507,-6216.05,0.00011506,2]
[352352953,1739053846516,-3454.3941399,0.00011526,2]
[352352954,1739053846526,-500.0,0.00011577,2]
[352352955,1739053846535,-483.93865186,0.00011577,2]
[352352956,1739053846544,-151.0,0.000116,2]
[352352957,1739053846554,-151.0,0.000116,2]
[352352958,1739053846563,-166.368594,0.00011604,5]
[352352959,1739053846572,-289.71604683,0.00011642,2]
[352352960,1739053846582,-480.433557,0.00011643,2]
[352352961,1739053846592,-321.892443,0.00011643,2]
[352352962,1739053846601,-321.892443,0.00011643,2]
[352352963,1739053846610,-345.994379,0.00011643,2]
[352352964,1739053846620,-345.994379,0.00011643,2]
[352352965,1739053846629,-151.0,0.00011643,2]
[352352966,1739053846639,-151.0,0.00011643,2]
[352352967,1739053846648,-151.0,0.00011643,2]
[352352968,1739053846658,-151.0,0.00011643,2]
[352352969,1739053846668,-151.0,0.00011643,2]
[352352970,1739053846678,-183.24534,0.00011643,2]
[352352971,1739053846688,-151.0,0.00011643,2]
[352352972,1739053846697,-500.0,0.00011643,2]
[352352973,1739053846706,-231.96,0.00011643,2]
[352352974,1739053846716,-950.13,0.00011643,2]
[352352975,1739053846727,-151.0,0.00011643,2]
[352352976,1739053846736,-1176.96979,0.00011643,2]
[352352977,1739053846746,-1176.96979,0.00011643,2]
[352352978,1739053846755,-555.11,0.00011643,2]
[352352979,1739053846765,-820.39,0.00011643,2]
[352352980,1739053846775,-151.0,0.00011643,2]
[352352981,1739053846784,-283.398644,0.00011643,2]
[352352982,1739053846794,-500.0,0.00011643,2]
[352352983,1739053846804,-283.398644,0.00011643,2]
[352352984,1739053846814,-500.0,0.00011643,2]
[352352985,1739053846824,-151.0,0.00011643,2]
[352352986,1739053846833,-500.0,0.00011643,2]
[352352987,1739053846844,-151.0,0.00011643,2]
[352352988,1739053846854,-151.0,0.00011643,2]
[352352989,1739053846863,-694.45,0.00011643,2]
[352352990,1739053846872,-533.1,0.00011643,2]
[352352991,1739053846882,-500.0,0.00011643,2]
[352352992,1739053846891,-500.0,0.00011643,2]
[352352993,1739053846900,-500.0,0.00011643,2]
[352352994,1739053846910,-500.0,0.00011643,2]
[352352995,1739053846919,-500.0,0.00011643,2]
[352352996,1739053846929,-724.76,0.00011643,2]
[352352997,1739053846939,-500.0,0.00011643,2]
[352352998,1739053846949,-500.0,0.00011643,2]
[352352999,1739053846962,-151.0,0.00011643,2]
[352353000,1739053846972,-234.330254,0.00011643,2]
[352353001,1739053846982,-500.0,0.00011643,2]
[352353002,1739053846991,-234.330254,0.00011643,2]
[352353003,1739053847001,-500.0,0.00011643,2]
[352353004,1739053847010,-582.77,0.00011643,2]
[352353005,1739053847019,-500.0,0.00011643,2]
[352353006,1739053847029,-500.0,0.00011643,2]
[352353007,1739053847040,-868.97,0.00011643,2]
[352353008,1739053847049,-500.0,0.00011643,2]
[352353009,1739053847058,-500.0,0.00011643,2]
[352353010,1739053847068,-270.005358,0.00011643,2]
[352353011,1739053847079,-796.22,0.00011643,2]
[352353012,1739053847088,-621.31,0.00011643,2]
[352353013,1739053847098,-270.005358,0.00011643,2]
[352353014,1739053847108,-500.0,0.00011643,2]
[352353015,1739053847117,-1125.62,0.00011643,2]
[352353016,1739053847126,-578.63,0.00011643,2]
[352353017,1739053847135,-151.0,0.00011643,2]
[352353018,1739053847145,-1061.58,0.00011643,2]
[352353019,1739053847154,-500.0,0.00011643,2]
[352353020,1739053847164,-500.0,0.00011643,2]
[352353021,1739053847173,-346.523451,0.00011643,2]
[352353022,1739053847182,-346.523451,0.00011643,2]
[352353023,1739053847192,-2564.95143989,0.00011643,2]
[352353024,1739053847551,-157.89069994,0.00010995,2]
[352353025,1739053847561,-436.92856011,0.00011643,2]
[352353026,1739053847571,-520.86,0.00011643,2]
[352353027,1739053847580,-1106.85,0.00011643,2]
[352353028,1739053847589,-839.75,0.00011643,2]
[352353029,1739053847599,-1121.97,0.00011643,2]
[352353030,1739053847608,-500.0,0.00011643,2]
[352353031,1739053847617,-500.0,0.00011643,2]
[352353032,1739053847627,-500.0,0.00011643,2]
[352353033,1739053847636,-500.0,0.00011643,2]
[352353034,1739053847645,-2131.55,0.00011643,2]
[352353035,1739053847654,-500.0,0.00011643,2]
[352353036,1739053847664,-221.769716,0.00011643,2]
[352353037,1739053847673,-1038.66,0.00011643,2]
[352353038,1739053847682,-221.769716,0.00011643,2]
[352353039,1739053847692,-5468.34,0.00011643,2]
[352353040,1739053847701,-2011.74,0.00011643,2]
[352353041,1739053847710,-500.0,0.00011643,2]
[352353042,1739053847719,-500.0,0.00011643,2]
[352353043,1739053847728,-585.90739445,0.00011643,2]
[352353044,1739053848007,-157.89069991,0.00011269,2]
[352353045,1739053848016,-157.89069991,0.00011543,2]
[352353046,1739053848027,-546.12260555,0.00011643,2]
[352353047,1739053848037,-500.0,0.00011643,2]
[352353048,1739053848047,-2098.05112828,0.00011643,2]
[352353049,1739053848064,-238.60887172,0.00011643,2]
[352353050,1739053848076,-500.0,0.00011643,2]
[352353051,1739053848087,-832.94726501,0.00011643,2]
[352353052,1739053848205,1000.0,0.0001402,28]
[352353053,1739053848227,-215.7975175,0.000115,2]
[352353054,1739053848238,-1439.03273499,0.00011643,2]
[352353055,1739053848248,-1017.15,0.00011643,2]
[352353056,1739053848259,-616.286043,0.00011643,2]
[352353057,1739053848268,-9408.78,0.00011643,2]
[352353058,1739053848278,-513.28479079,0.00011643,2]
[352353059,1739053848288,-616.286043,0.00011643,2]
[352353060,1739053848298,-481.37302079,0.00011643,2]
[352353061,1739053848309,-500.0,0.00011643,2]
[352353062,1739053848320,-500.0,0.00011643,2]
[352353063,1739053848329,-500.0,0.00011643,2]
[352353064,1739053848338,-811.653379,0.00011643,2]
[352353065,1739053848348,-811.653379,0.00011643,2]
[352353066,1739053848358,-674.84,0.00011643,2]
[352353067,1739053848368,-500.0,0.00011643,2]
[352353068,1739053848378,-861.82,0.00011643,2]
[352353069,1739053848387,-1922.81,0.00011643,2]
[352353070,1739053848398,-500.0,0.00011643,2]
[352353071,1739053848408,-500.0,0.00011643,2]
[352353072,1739053848418,-500.0,0.00011643,2]
[352353073,1739053848428,-674.57,0.00011643,2]
[352353074,1739053848437,-2052.04,0.00011643,2]
[352353075,1739053848447,-1050.46,0.00011643,2]
[352353076,1739053848458,-3418.51,0.00011643,2]
[352353077,1739053848468,-500.0,0.00011643,2]
[352353078,1739053848478,-272.605407,0.00011643,2]
[352353079,1739053848488,-782.84,0.00011643,2]
[352353080,1739053848498,-25845.69,0.00011643,2]
[352353081,1739053848508,-272.605407,0.00011643,2]
[352353082,1739053848517,-1184.97,0.00011643,2]
[352353083,1739053848527,-1426.95,0.00011643,2]
[352353084,1739053848539,-509.33,0.00011643,2]
[352353085,1739053848550,-274.46086453,0.00011643,2]
[352353086,1739053848560,-500.0,0.00011643,2]
[352353087,1739053848572,-443.388756,0.00011643,2]
[352353088,1739053848582,-247.149156,0.00011643,2]
[352353089,1739053848592,-879.52,0.00011643,2]
[352353090,1739053848603,-902.54,0.00011643,2]
[352353091,1739053848614,-443.388756,0.00011643,2]
[352353092,1739053848624,-247.149156,0.00011643,2]
[352353093,1739053848634,-6216.05,0.00011643,2]
[352353094,1739053848645,-166.368594,0.00011664,5]
[352353095,1739053848657,-3000.0,0.0001168,2]
[352353096,1739053848667,-465.02064172,0.00011708,2]
[352353097,1739053848678,-166.368594,0.00011725,5]
[352353098,1739053848690,-26784.33964562,0.0001177,2]
[352353099,1739053848701,-272.605407,0.0001177,2]
[352353100,1739053848711,-272.605407,0.0001177,2]
[352353101,1739053848722,-1000.0,0.0001177,2]
[352353102,1739053848733,-151.0,0.0001178,2]
[352353103,1739053848744,-152.856066,0.0001178,2]
[352353104,1739053848754,-250.66624,0.0001178,2]
[352353105,1739053848765,-151.0,0.0001178,2]
[352353106,1739053848775,-151.0,0.0001178,2]
[352353107,1739053848787,-151.0,0.0001178,2]
[352353108,1739053848796,-239.699664,0.0001178,2]
[352353109,1739053848806,-480.433557,0.0001178,2]
[352353110,1739053848816,-321.892443,0.0001178,2]
[352353111,1739053848826,-321.892443,0.0001178,2]
[352353112,1739053848836,-345.994379,0.0001178,2]
[352353113,1739053848847,-345.994379,0.0001178,2]
[352353114,1739053848857,-151.0,0.0001178,2]
[352353115,1739053848868,-151.0,0.0001178,2]
[352353116,1739053848878,-151.0,0.0001178,2]
[352353117,1739053848888,-151.0,0.0001178,2]
[352353118,1739053848898,-151.0,0.0001178,2]
[352353119,1739053848908,-151.0,0.0001178,2]
[352353120,1739053848919,-500.0,0.0001178,2]
[352353121,1739053848929,-1176.96979,0.0001178,2]
[352353122,1739053848941,-1176.96979,0.0001178,2]
[352353123,1739053848954,-555.11,0.0001178,2]
[352353124,1739053848965,-820.39,0.0001178,2]
[352353125,1739053848976,-151.0,0.0001178,2]
[352353126,1739053848988,-283.398644,0.0001178,2]
[352353127,1739053849000,-500.0,0.0001178,2]
[352353128,1739053849011,-283.398644,0.0001178,2]
[352353129,1739053849023,-500.0,0.0001178,2]
[352353130,1739053849034,-151.0,0.0001178,2]
[352353131,1739053849045,-446.36257594,0.0001178,2]
[352353132,1739053849055,-151.0,0.0001178,2]
[352353133,1739053849065,-151.0,0.0001178,2]
[352353134,1739053849076,-694.45,0.0001178,2]
[352353135,1739053849087,-151.0,0.0001178,2]
[352353136,1739053849097,-533.1,0.0001178,2]
[352353137,1739053849108,-500.0,0.0001178,2]
[352353138,1739053849118,-500.0,0.0001178,2]
[352353139,1739053849128,-500.0,0.0001178,2]
[352353140,1739053849138,-500.0,0.0001178,2]
[352353141,1739053849147,-500.0,0.0001178,2]
[352353142,1739053849157,-724.76,0.0001178,2]
[352353143,1739053849166,-500.0,0.0001178,2]
[352353144,1739053849175,-500.0,0.0001178,2]
[352353145,1739053849186,-151.0,0.0001178,2]
[352353146,1739053849410,-234.330254,0.0001178,2]
[352353147,1739053849423,-500.0,0.0001178,2]
[352353148,1739053849434,-234.330254,0.0001178,2]
[352353149,1739053849445,-582.77,0.0001178,2]
[352353150,1739053849455,-500.0,0.0001178,2]
[352353151,1739053849466,-500.0,0.0001178,2]
[352353152,1739053849478,-868.97,0.0001178,2]
[352353153,1739053849489,-500.0,0.0001178,2]
[352353154,1739053849499,-500.0,0.0001178,2]
[352353155,1739053849510,-270.005358,0.0001178,2]
[352353156,1739053849520,-796.22,0.0001178,2]
[352353157,1739053849531,-621.31,0.0001178,2]
[352353158,1739053849542,-270.005358,0.0001178,2]
[352353159,1739053849554,-500.0,0.0001178,2]
[352353160,1739053849565,-151.0,0.0001178,2]
[352353161,1739053849576,-500.0,0.0001178,2]
[352353162,1739053849587,-346.523451,0.0001178,2]
[352353163,1739053849599,-346.523451,0.0001178,2]
[352353164,1739053849610,-3001.88,0.0001178,2]
[352353165,1739053849621,-1106.85,0.0001178,2]
[352353166,1739053849632,-839.75,0.0001178,2]
[352353167,1739053849642,-1121.97,0.0001178,2]
[352353168,1739053849652,-500.0,0.0001178,2]
[352353169,1739053849662,-220.5948,0.0001178,2]
[352353170,1739053849677,-279.4052,0.0001178,2]
[352353171,1739053849688,-173.09375,0.0001178,2]
[352353172,1739053849700,-326.90625,0.0001178,2]
[352353173,1739053849710,-2131.55,0.0001178,2]
[352353174,1739053849720,-500.0,0.0001178,2]
[352353175,1739053849730,-221.769716,0.0001178,2]
[352353176,1739053849740,-423.10003518,0.0001178,2]
[352353177,1739053849754,-615.55996482,0.0001178,2]
[352353178,1739053849763,-221.769716,0.0001178,2]
[352353179,1739053849774,-5468.34,0.0001178,2]
[352353180,1739053849785,-2011.74,0.0001178,2]
[352353181,1739053849794,-500.0,0.0001178,2]
[352353182,1739053849804,-500.0,0.0001178,2]
[352353183,1739053849814,-1132.03,0.0001178,2]
[352353184,1739053849824,-500.0,0.0001178,2]
[352353185,1739053849834,-2336.66,0.0001178,2]
[352353186,1739053849844,-2271.98,0.0001178,2]
[352353187,1739053849854,-1017.15,0.0001178,2]
[352353188,1739053849864,-616.286043,0.0001178,2]
[352353189,1739053849873,-9408.78,0.0001178,2]
[352353190,1739053849885,-616.286043,0.0001178,2]
[352353191,1739053849895,-500.0,0.0001178,2]
[352353192,1739053849904,-500.0,0.0001178,2]
[352353193,1739053849914,-500.0,0.0001178,2]
[352353194,1739053849923,-811.653379,0.0001178,2]
[352353195,1739053849933,-811.653379,0.0001178,2]
[352353196,1739053849942,-674.84,0.0001178,2]
[352353197,1739053849956,-500.0,0.0001178,2]
[352353198,1739053849966,-861.82,0.0001178,2]
[352353199,1739053849975,-1922.81,0.0001178,2]
[352353200,1739053849984,-500.0,0.0001178,2]
[352353201,1739053849995,-620.68,0.0001178,2]
[352353202,1739053850005,-500.0,0.0001178,2]
[352353203,1739053850015,-674.57,0.0001178,2]
[352353204,1739053850024,-2052.04,0.0001178,2]
[352353205,1739053850037,-1050.46,0.0001178,2]
[352353206,1739053850048,-3418.51,0.0001178,2]
[352353207,1739053850059,-500.0,0.0001178,2]
[352353208,1739053850069,-782.84,0.0001178,2]
[352353209,1739053850078,-21750.09910897,0.0001178,2]
[352353210,1739053850506,-4095.59089103,0.0001178,2]
[352353211,1739053850516,-401.54510663,0.0001178,2]
[352353212,1739053850551,1000.0,0.0001402,29]
[352353214,1739054829141,-1039.91360327,0.00010421,2]
[352353215,1739054829162,-400.0,0.00010685,2]
[352353216,1739054829185,-300.0,0.00010957,2]
[352353217,1739054829208,-287.4893967,0.00010957,2]
[352353218,1739054829232,-500.0,0.00010957,2]
[352353219,1739054829254,-500.0,0.00010957,2]
[352353220,1739054829277,-187.52712876,0.00010957,2]
[352353221,1739054829301,-500.0,0.00010958,2]
[352353222,1739054829321,-500.0,0.00010958,2]
[352353223,1739054829342,-500.0,0.00010958,2]
[352353224,1739054829364,-500.0,0.00010958,2]
[352353225,1739054829385,-500.0,0.00010958,2]
[352353226,1739054829406,-500.0,0.00010958,2]
[352353227,1739054829428,-500.0,0.00010958,2]
[352353228,1739054829448,-461.35533772,0.00010958,2]
[352353229,1739054829470,-315.04,0.00010958,2]
[352353230,1739054829489,-500.0,0.00010958,2]
[352353231,1739054829508,-500.0,0.00010958,2]
[352353232,1739054829527,-459.53805749,0.00010958,2]
[352353233,1739054829548,-500.0,0.00010958,2]
[352353234,1739054829569,-500.0,0.00010958,2]
[352353235,1739054829590,-500.0,0.00010958,2]
[352353236,1739054829610,-500.0,0.00010958,2]
[352353237,1739054829631,-500.0,0.00010958,2]